Workbook

Sheet Sheet1
B2: Assumptions
C3: Debt | K3: FALSE | L3: Iteration
D4: Gearing | E4: 0.7003891347
D5: Fees & IDCs | E5: 0.15
C7: Capex | H7: 50 | I7: 60 | J7: 70 | K7: 100 | L7: 200 | M7: 50
C8: EBITDA | N8: 717.79565 | P8: Target Debt | Q8: 450
C9: FCF | H9: =(H8-H7) -> -50 | I9: =(I8-I7) -> -60 | J9: -70 | K9: -100 | L9: -200 | M9: -50 | N9: 717.79565 | P9: Computed Debt | Q9: =G21 -> 414.7826283
C10: Project IRR | E10: =IRR(H9:N9) -> 0.1 | P10: Diff | Q10: =Q8-Q9 -> 35.21737167
C11: Target IRR | E11: 0.1 | F11: =NPV(E11,H9:N9) -> 0
R12: Gearing
Q13: =G21 -> 414.7826283 | R13: 0.65 | S13: 0.75 | T13: 0.85
B14: Sources and Uses | P14: Fees & IDCs | Q14: 0.1 | R14: 368.4491979 | S14: 429.7297297 | T14: 492.3497268
C15: Uses | Q15: 0.15 | R15: 381.7174515 | S15: 447.8873239 | T15: 516.3323782
D16: Capex | G16: =(SUM(H16:M16))*1 -> 530 | H16: =H7 -> 50 | I16: =I7 -> 60 | J16: 70 | K16: 100 | L16: 200 | M16: 50 | Q16: 0.2 | R16: 395.9770115 | S16: 467.6470588 | T16: 542.7710843
D17: Fees & IDCs - from paste | E17: =E5 -> 0.15 | G17: =(SUM(H17:M17))*1 -> 62.21739425 | H17: =H40 -> 5.869565495 | I17: =I40 -> 7.043478594 | J17: 8.217391693 | K17: 11.73913099 | L17: 23.47826198 | M17: 5.869565495
D18: Total | G18: =(SUM(H18:M18))*1 -> 592.2173943 | H18: =SUM(H16:H17) -> 55.8695655 | I18: 67.04347859 | J18: 78.21739169 | K18: 111.739131 | L18: 223.478262 | M18: 55.8695655 | R18: Gearing
R19: 0.65 | S19: 0.75 | T19: 0.85
C20: Sources | P20: Fees & IDCs | Q20: 0.1 | R20: 368.4491979 | S20: 429.7297297 | T20: 492.3497268
D21: Debt | E21: =E4 -> 0.7003891347 | G21: 414.7826283 | H21: =$E$21*H18 -> 39.13043664 | I21: =$E$21*I18 -> 46.95652396 | J21: 54.78261129 | K21: 78.26087327 | L21: 156.5217465 | M21: 39.13043664 | Q21: 0.15 | R21: 381.7174515 | S21: 447.8873239 | T21: 516.3323782
D22: Equity | G22: =(SUM(H22:M22))*1 -> 177.4347659 | H22: =H18-H21 -> 16.73912886 | I22: =I18-I21 -> 20.08695463 | J22: 23.4347804 | K22: 33.47825772 | L22: 66.95651544 | M22: 16.73912886 | Q22: 0.2 | R22: 395.9770115 | S22: 467.6470588 | T22: 542.7710843
D23: Total | G23: 592.2173943 | H23: =SUM(H21:H22) -> 55.8695655 | I23: =SUM(I21:I22) -> 67.04347859 | J23: 78.21739169 | K23: 111.739131 | L23: 223.478262 | M23: 55.8695655
D25: Computed fees | E25: =E17 -> 0.15 | G25: =$E$25*G21 -> 62.21739425 | H25: =$E$25*H21 -> 5.869565495 | I25: 7.043478594 | J25: 8.217391693 | K25: 11.73913099 | L25: 23.47826198 | M25: 5.869565495
B27: Solver
C28: Copy Block
D29: Computed fees | H29: =H25 -> 5.869565495 | I29: =I25 -> 7.043478594 | J29: =J25 -> 8.217391693 | K29: =K25 -> 11.73913099 | L29: =L25 -> 23.47826198 | M29: =M25 -> 5.869565495
D30: [other circular references]
D31: Total | H31: =SUM(H29:H30) -> 5.869565495 | I31: =SUM(I29:I30) -> 7.043478594 | J31: 8.217391693 | K31: 11.73913099 | L31: 23.47826198 | M31: 5.869565495
C33: Paste Block
D34: Pasted fees | H34: 5.869565495 | I34: 7.043478594 | J34: 8.217391693 | K34: 11.73913099 | L34: 23.47826198 | M34: 5.869565495
D35: [other circular references]
D36: Total | H36: =SUM(H34:H35) -> 5.869565495 | I36: =SUM(I34:I35) -> 7.043478594 | J36: 8.217391693 | K36: 11.73913099 | L36: 23.47826198 | M36: 5.869565495
C38: Difference | G38: =SUM(H38:XFD38) -> 0 | H38: =H31-H36 -> 0 | I38: =I31-I36 -> 0 | J38: 0 | K38: 0 | L38: 0 | M38: 0
D40: Fees | H40: =Fee(Fees,Gearing,H7) -> 5.869565495 | I40: =Fee(Fees,Gearing,I7) -> 7.043478594 | J40: =Fee(Fees,Gearing,J7) -> 8.217391693 | K40: =Fee(Fees,Gearing,K7) -> 11.73913099 | L40: =Fee(Fees,Gearing,L7) -> 23.47826198 | M40: =Fee(Fees,Gearing,M7) -> 5.869565495
